[Event "Titled Tuesday Blitz February 21 Late 2023"]
[White "Leonte, Sebastian-Marian"]
[Black "Kalajzic, Ivan"]
[WhiteFideId "1268767"]
[BlackFideId "14506378"]
[WhiteElo "1279"]
[BlackElo "2062"]
[Result "0-1"]
[Round "07"]
[TimeControl "180+2"]
[Date "2023.02.21"]
[WhiteClock "0:00:03"]
[BlackClock "0:00:18"]

1. e4 {[%clk 0:03:00]}  Nc6 {[%clk 0:02:59]} 2. Nf3 {[%clk 0:02:59]}  d6 {[%clk 0:03:00]} 3. d4 {[%clk 0:02:53]}  Bg4 {[%clk 0:02:58]} 4. Be2 {[%clk 0:02:50]}  e5 {[%clk 0:02:58]} 5. d5 {[%clk 0:02:36]}  Nce7 {[%clk 0:02:58]} 6. h3 {[%clk 0:02:35]}  Bd7 {[%clk 0:02:58]} 7. Bg5 {[%clk 0:02:15]}  h6 {[%clk 0:02:53]} 8. Be3 {[%clk 0:02:14]}  g5 {[%clk 0:02:45]} 9. h4 {[%clk 0:02:10]}  g4 {[%clk 0:02:44]} 10. Nfd2 {[%clk 0:02:10]}  h5 {[%clk 0:02:41]} 11. f3 {[%clk 0:02:09]}  Bh6 {[%clk 0:02:32]} 12. Bg5 {[%clk 0:02:03]}  f6 {[%clk 0:02:28]} 13. Bxh6 {[%clk 0:01:56]}  Nxh6 {[%clk 0:02:29]} 14. Nc3 {[%clk 0:01:51]}  Ng6 {[%clk 0:02:27]} 15. g3 {[%clk 0:01:48]}  gxf3 {[%clk 0:02:19]} 16. Bxf3 {[%clk 0:01:49]}  Ng4 {[%clk 0:02:16]} 17. Nf1 {[%clk 0:01:43]}  O-O {[%clk 0:02:04]} 18. Qe2 {[%clk 0:01:39]}  f5 {[%clk 0:02:00]} 19. O-O-O {[%clk 0:01:34]}  f4 {[%clk 0:01:58]} 20. Nh2 {[%clk 0:01:25]}  Qc8 {[%clk 0:01:39]} 21. Rdg1 {[%clk 0:01:18]}  Kh8 {[%clk 0:01:37]} 22. Bxg4 {[%clk 0:00:55]}  Bxg4 {[%clk 0:01:35]} 23. Nxg4 {[%clk 0:00:55]}  f3 {[%clk 0:01:29]} 24. Qe3 {[%clk 0:00:50]}  Qxg4 {[%clk 0:01:29]} 25. Qh6+ {[%clk 0:00:50]}  Kg8 {[%clk 0:01:29]} 26. Nd1 {[%clk 0:00:47]}  f2 {[%clk 0:00:52]} 27. Rf1 {[%clk 0:00:42]}  Qxg3 {[%clk 0:00:52]} 28. Rxf2 {[%clk 0:00:33]}  Rxf2 {[%clk 0:00:45]} 29. Nxf2 {[%clk 0:00:34]}  Qf4+ {[%clk 0:00:42]} 30. Qxf4 {[%clk 0:00:33]}  Nxf4 {[%clk 0:00:43]} 31. Rg1+ {[%clk 0:00:31]}  Kf7 {[%clk 0:00:43]} 32. Rg5 {[%clk 0:00:22]}  Rg8 {[%clk 0:00:41]} 33. Rxg8 {[%clk 0:00:22]}  Kxg8 {[%clk 0:00:41]} 34. Nh1 {[%clk 0:00:20]}  Kg7 {[%clk 0:00:40]} 35. Ng3 {[%clk 0:00:19]}  Kg6 {[%clk 0:00:34]} 36. Kd2 {[%clk 0:00:17]}  c6 {[%clk 0:00:32]} 37. c4 {[%clk 0:00:14]}  Kf6 {[%clk 0:00:26]} 38. b4 {[%clk 0:00:11]}  cxd5 {[%clk 0:00:25]} 39. cxd5 {[%clk 0:00:11]}  Ng6 {[%clk 0:00:25]} 40. Nxh5+ {[%clk 0:00:09]}  Ke7 {[%clk 0:00:23]} 41. Ke3 {[%clk 0:00:08]}  Nxh4 {[%clk 0:00:23]} 42. Ng3 {[%clk 0:00:08]}  Ng6 {[%clk 0:00:21]} 43. Nf5+ {[%clk 0:00:08]}  Kd7 {[%clk 0:00:21]} 44. Kd3 {[%clk 0:00:04]}  Nf4+ {[%clk 0:00:22]} 45. Ke3 {[%clk 0:00:05]}  Kc7 {[%clk 0:00:21]} 46. Ne7 {[%clk 0:00:05]}  Ng2+ {[%clk 0:00:20]} 47. Kd3 {[%clk 0:00:03]}  Ne1+ {[%clk 0:00:20]} 48. Kd2 {[%clk 0:00:03]}  Nf3+ {[%clk 0:00:19]} 49. Ke3 {[%clk 0:00:04]}  Nd4 {[%clk 0:00:20]} 50. Nf5 {[%clk 0:00:04]}  Nc2+ {[%clk 0:00:20]} 51. Kf3 {[%clk 0:00:03]}  Nxb4 {[%clk 0:00:21]} 52. Kg4 {[%clk 0:00:03]}  Nxa2 {[%clk 0:00:21]} 53. Kg5 {[%clk 0:00:04]}  Nc3 {[%clk 0:00:19]} 54. Ng3 {[%clk 0:00:03]}  a5 {[%clk 0:00:18]} 55. Kf6 {[%clk 0:00:03]}  a4 {[%clk 0:00:18]} 0-1


[Site "https://www.chess.com"]

[Event "Titled Tuesday Blitz February 21 Late 2023"]
[White "Sailer, Mike"]
[Black "Rian, Kapriaga"]
[WhiteFideId "2012901"]
[BlackFideId "7103263"]
[WhiteElo "2109"]
[BlackElo "2089"]
[Result "1-0"]
[Round "07"]
[TimeControl "180+2"]
[Date "2023.02.21"]
[WhiteClock "0:01:35"]
[BlackClock "0:00:46"]

1. d4 {[%clk 0:03:00]}  Nf6 {[%clk 0:02:58]} 2. Bg5 {[%clk 0:02:59]}  e6 {[%clk 0:02:58]} 3. e3 {[%clk 0:02:57]}  d5 {[%clk 0:02:56]} 4. Bd3 {[%clk 0:02:57]}  Be7 {[%clk 0:02:54]} 5. f4 {[%clk 0:02:56]}  h6 {[%clk 0:02:53]} 6. Bxf6 {[%clk 0:02:55]}  Bxf6 {[%clk 0:02:51]} 7. Nf3 {[%clk 0:02:56]}  b6 {[%clk 0:02:49]} 8. c3 {[%clk 0:02:56]}  O-O {[%clk 0:02:48]} 9. O-O {[%clk 0:02:56]}  Ba6 {[%clk 0:02:47]} 10. Ne5 {[%clk 0:02:56]}  Bxd3 {[%clk 0:02:45]} 11. Qxd3 {[%clk 0:02:57]}  c5 {[%clk 0:02:43]} 12. Rf3 {[%clk 0:02:56]}  Nd7 {[%clk 0:02:34]} 13. Rg3 {[%clk 0:02:56]}  cxd4 {[%clk 0:02:25]} 14. exd4 {[%clk 0:02:55]}  Bxe5 {[%clk 0:02:19]} 15. fxe5 {[%clk 0:02:54]}  f5 {[%clk 0:02:18]} 16. exf6 {[%clk 0:02:54]}  Qxf6 {[%clk 0:02:16]} 17. Nd2 {[%clk 0:02:53]}  Qf2+ {[%clk 0:02:12]} 18. Kh1 {[%clk 0:02:50]}  Rf6 {[%clk 0:01:48]} 19. Rf1 {[%clk 0:02:50]}  Raf8 {[%clk 0:01:39]} 20. Rxf2 {[%clk 0:02:49]}  Rxf2 {[%clk 0:01:38]} 21. Rf3 {[%clk 0:02:38]}  e5 {[%clk 0:01:33]} 22. Rxf2 {[%clk 0:02:26]}  Rxf2 {[%clk 0:01:32]} 23. dxe5 {[%clk 0:02:23]}  Nxe5 {[%clk 0:01:29]} 24. Qxd5+ {[%clk 0:02:23]}  Nf7 {[%clk 0:01:27]} 25. Kg1 {[%clk 0:02:19]}  Rf6 {[%clk 0:01:25]} 26. Qa8+ {[%clk 0:02:15]}  Kh7 {[%clk 0:01:22]} 27. Qxa7 {[%clk 0:02:16]}  Ne5 {[%clk 0:01:14]} 28. Nf3 {[%clk 0:02:11]}  Nd3 {[%clk 0:01:11]} 29. b3 {[%clk 0:02:03]}  Nf4 {[%clk 0:00:51]} 30. Qe7 {[%clk 0:01:37]}  Nd5 {[%clk 0:00:46]} 31. Qe4+ {[%clk 0:01:35]} 1-0


[Site "https://www.chess.com"]

[Event "Titled Tuesday Blitz February 21 Late 2023"]
[White "Chemin, Justo Reinaldo"]
[Black "Kielinkei"]
[WhiteFideId "2101580"]
[WhiteElo "2040"]
[BlackElo "2387"]
[Result "0-1"]
[Round "07"]
[TimeControl "180+2"]
[Date "2023.02.21"]
[WhiteClock "0:00:24"]
[BlackClock "0:01:33"]

1. d4 {[%clk 0:03:00]}  f5 {[%clk 0:02:59]} 2. g3 {[%clk 0:02:59]}  Nf6 {[%clk 0:03:00]} 3. Bg2 {[%clk 0:03:00]}  g6 {[%clk 0:03:00]} 4. Nh3 {[%clk 0:02:58]}  Bg7 {[%clk 0:03:00]} 5. Nc3 {[%clk 0:02:59]}  O-O {[%clk 0:02:59]} 6. Nf4 {[%clk 0:02:52]}  d6 {[%clk 0:02:58]} 7. h4 {[%clk 0:02:50]}  e5 {[%clk 0:02:54]} 8. dxe5 {[%clk 0:02:49]}  dxe5 {[%clk 0:02:54]} 9. Qxd8 {[%clk 0:02:49]}  Rxd8 {[%clk 0:02:54]} 10. Nfd5 {[%clk 0:02:46]}  Nxd5 {[%clk 0:02:45]} 11. Nxd5 {[%clk 0:02:42]}  Rd7 {[%clk 0:02:30]} 12. h5 {[%clk 0:02:31]}  c6 {[%clk 0:02:27]} 13. Nc3 {[%clk 0:02:22]}  Na6 {[%clk 0:02:28]} 14. a3 {[%clk 0:02:21]}  Rd6 {[%clk 0:02:15]} 15. hxg6 {[%clk 0:02:20]}  hxg6 {[%clk 0:02:15]} 16. Bg5 {[%clk 0:02:14]}  Be6 {[%clk 0:02:13]} 17. O-O {[%clk 0:01:56]}  e4 {[%clk 0:02:13]} 18. Bf4 {[%clk 0:01:54]}  Rd7 {[%clk 0:02:11]} 19. Rfd1 {[%clk 0:01:48]}  Rad8 {[%clk 0:02:11]} 20. Rxd7 {[%clk 0:01:46]}  Rxd7 {[%clk 0:02:11]} 21. f3 {[%clk 0:01:33]}  exf3 {[%clk 0:02:10]} 22. Bxf3 {[%clk 0:01:31]}  Nc5 {[%clk 0:02:10]} 23. Kf2 {[%clk 0:01:14]}  Bf6 {[%clk 0:02:03]} 24. Be3 {[%clk 0:01:10]}  Bd4 {[%clk 0:01:59]} 25. Bxd4 {[%clk 0:01:09]}  Rxd4 {[%clk 0:02:00]} 26. Rd1 {[%clk 0:01:08]}  Rxd1 {[%clk 0:01:57]} 27. Nxd1 {[%clk 0:01:08]}  Kf7 {[%clk 0:01:55]} 28. b4 {[%clk 0:01:01]}  Na4 {[%clk 0:01:52]} 29. Ke3 {[%clk 0:00:57]}  Ke7 {[%clk 0:01:52]} 30. Kd4 {[%clk 0:00:56]}  Kd6 {[%clk 0:01:53]} 31. c4 {[%clk 0:00:55]}  c5+ {[%clk 0:01:49]} 32. bxc5+ {[%clk 0:00:55]}  Nxc5 {[%clk 0:01:50]} 33. Nc3 {[%clk 0:00:51]}  a6 {[%clk 0:01:44]} 34. e4 {[%clk 0:00:43]}  Nb3+ {[%clk 0:01:38]} 35. Kd3 {[%clk 0:00:41]}  Ke5 {[%clk 0:01:39]} 36. Nd5 {[%clk 0:00:31]}  fxe4+ {[%clk 0:01:35]} 37. Ke3 {[%clk 0:00:27]}  exf3 {[%clk 0:01:34]} 38. Kxf3 {[%clk 0:00:25]}  Bxd5+ {[%clk 0:01:34]} 39. cxd5 {[%clk 0:00:25]}  Kxd5 {[%clk 0:01:35]} 40. Kg4 {[%clk 0:00:25]}  Ke6 {[%clk 0:01:34]} 41. Kg5 {[%clk 0:00:25]}  Kf7 {[%clk 0:01:35]} 42. Kf4 {[%clk 0:00:25]}  Kf6 {[%clk 0:01:34]} 43. Ke4 {[%clk 0:00:24]}  Ke6 {[%clk 0:01:32]} 44. Kf4 {[%clk 0:00:24]}  Nc5 {[%clk 0:01:33]} 45. Kg5 {[%clk 0:00:24]}  Kf7 {[%clk 0:01:33]} 46. Kh6 {[%clk 0:00:25]}  Kf6 {[%clk 0:01:32]} 47. g4 {[%clk 0:00:25]}  g5 {[%clk 0:01:32]} 48. Kh7 {[%clk 0:00:24]}  Ke5 {[%clk 0:01:32]} 49. Kg6 {[%clk 0:00:24]}  Kf4 {[%clk 0:01:33]} 0-1


[Site "https://www.chess.com"]

[Event "Titled Tuesday Blitz February 21 Late 2023"]
[White "Torres Dominguez, David"]
[Black "Hoffmann, Asa"]
[WhiteFideId "2220857"]
[BlackFideId "2001470"]
[WhiteElo "1994"]
[BlackElo "2185"]
[Result "0-1"]
[Round "07"]
[TimeControl "180+2"]
[Date "2023.02.21"]
[WhiteClock "0:00:42"]
[BlackClock "0:01:32"]

1. e4 {[%clk 0:03:00]}  d6 {[%clk 0:02:58]} 2. c3 {[%clk 0:03:00]}  c6 {[%clk 0:02:57]} 3. Nf3 {[%clk 0:02:58]}  Nf6 {[%clk 0:02:57]} 4. d3 {[%clk 0:02:58]}  Bg4 {[%clk 0:02:56]} 5. Be2 {[%clk 0:02:58]}  e6 {[%clk 0:02:56]} 6. O-O {[%clk 0:02:58]}  d5 {[%clk 0:02:56]} 7. e5 {[%clk 0:02:54]}  Nfd7 {[%clk 0:02:55]} 8. d4 {[%clk 0:02:54]}  c5 {[%clk 0:02:55]} 9. h3 {[%clk 0:02:53]}  Bh5 {[%clk 0:02:55]} 10. a3 {[%clk 0:02:50]}  Nc6 {[%clk 0:02:54]} 11. b4 {[%clk 0:02:50]}  cxd4 {[%clk 0:02:54]} 12. cxd4 {[%clk 0:02:48]}  Nb6 {[%clk 0:02:53]} 13. Nc3 {[%clk 0:02:44]}  Be7 {[%clk 0:02:52]} 14. Be3 {[%clk 0:02:38]}  Rc8 {[%clk 0:02:51]} 15. Rc1 {[%clk 0:02:37]}  a6 {[%clk 0:02:49]} 16. Qb3 {[%clk 0:02:37]}  Na7 {[%clk 0:02:45]} 17. Rfd1 {[%clk 0:02:35]}  O-O {[%clk 0:02:41]} 18. Na4 {[%clk 0:02:22]}  Bxf3 {[%clk 0:02:36]} 19. Nxb6 {[%clk 0:02:11]}  Bxe2 {[%clk 0:02:24]} 20. Nxc8 {[%clk 0:02:10]}  Bxd1 {[%clk 0:02:22]} 21. Nxe7+ {[%clk 0:02:10]}  Qxe7 {[%clk 0:02:22]} 22. Qxd1 {[%clk 0:02:07]}  Rc8 {[%clk 0:02:20]} 23. Rxc8+ {[%clk 0:01:56]}  Nxc8 {[%clk 0:02:19]} 24. Qc2 {[%clk 0:01:56]}  Qd7 {[%clk 0:02:17]} 25. Qc5 {[%clk 0:01:53]}  h6 {[%clk 0:02:14]} 26. a4 {[%clk 0:01:49]}  Ne7 {[%clk 0:02:14]} 27. b5 {[%clk 0:01:47]}  axb5 {[%clk 0:02:09]} 28. axb5 {[%clk 0:01:48]}  Nf5 {[%clk 0:02:09]} 29. g4 {[%clk 0:01:44]}  Nxe3 {[%clk 0:02:07]} 30. fxe3 {[%clk 0:01:45]}  Qd8 {[%clk 0:02:06]} 31. b6 {[%clk 0:01:43]}  Qg5 {[%clk 0:02:02]} 32. Qc8+ {[%clk 0:01:26]}  Kh7 {[%clk 0:02:02]} 33. Kf2 {[%clk 0:01:26]}  Qh4+ {[%clk 0:01:57]} 34. Kg2 {[%clk 0:01:26]}  Qe1 {[%clk 0:01:56]} 35. Qxb7 {[%clk 0:00:50]}  Qe2+ {[%clk 0:01:54]} 36. Kh1 {[%clk 0:00:49]}  Qf3+ {[%clk 0:01:52]} 37. Kh2 {[%clk 0:00:48]}  Qf2+ {[%clk 0:01:52]} 38. Kh1 {[%clk 0:00:47]}  Qe1+ {[%clk 0:01:50]} 39. Kh2 {[%clk 0:00:46]}  Qe2+ {[%clk 0:01:49]} 40. Kh1 {[%clk 0:00:46]}  Qf3+ {[%clk 0:01:48]} 41. Kh2 {[%clk 0:00:45]}  h5 {[%clk 0:01:36]} 42. Qxf7 {[%clk 0:00:42]}  Qxf7 {[%clk 0:01:32]} 0-1


[Site "https://www.chess.com"]

[Event "Titled Tuesday Blitz February 21 Late 2023"]
[White "Stanisz, Patryk"]
[Black "Sarkar, Justin"]
[WhiteFideId "1123106"]
[BlackFideId "2010011"]
[WhiteElo "2161"]
[BlackElo "2309"]
[Result "1/2-1/2"]
[Round "07"]
[TimeControl "180+2"]
[Date "2023.02.21"]
[WhiteClock "0:00:05"]
[BlackClock "0:00:06"]

1. d4 {[%clk 0:03:00]}  Nf6 {[%clk 0:02:53]} 2. c4 {[%clk 0:03:01]}  e6 {[%clk 0:02:52]} 3. Nc3 {[%clk 0:03:00]}  Bb4 {[%clk 0:02:51]} 4. e3 {[%clk 0:02:59]}  O-O {[%clk 0:02:46]} 5. Ne2 {[%clk 0:02:56]}  d5 {[%clk 0:02:32]} 6. a3 {[%clk 0:02:55]}  Be7 {[%clk 0:02:30]} 7. Nf4 {[%clk 0:02:53]}  c6 {[%clk 0:02:20]} 8. Bd3 {[%clk 0:02:49]}  Re8 {[%clk 0:02:14]} 9. O-O {[%clk 0:02:47]}  Nbd7 {[%clk 0:02:06]} 10. Nh5 {[%clk 0:02:42]}  dxc4 {[%clk 0:01:54]} 11. Bxc4 {[%clk 0:02:38]}  e5 {[%clk 0:01:48]} 12. Qb3 {[%clk 0:01:59]}  Rf8 {[%clk 0:01:42]} 13. Ng3 {[%clk 0:01:52]}  exd4 {[%clk 0:01:39]} 14. exd4 {[%clk 0:01:53]}  Nb6 {[%clk 0:01:37]} 15. Be2 {[%clk 0:01:27]}  Be6 {[%clk 0:01:31]} 16. Qd1 {[%clk 0:01:24]}  Nbd5 {[%clk 0:01:25]} 17. Bg5 {[%clk 0:01:20]}  h6 {[%clk 0:01:22]} 18. Nxd5 {[%clk 0:01:16]}  hxg5 {[%clk 0:01:10]} 19. Nxe7+ {[%clk 0:01:10]}  Qxe7 {[%clk 0:01:10]} 20. Qd2 {[%clk 0:01:07]}  Nd5 {[%clk 0:01:04]} 21. Ne4 {[%clk 0:01:06]}  f6 {[%clk 0:00:54]} 22. Rfe1 {[%clk 0:00:57]}  Bf5 {[%clk 0:00:49]} 23. Nc5 {[%clk 0:00:56]}  Qf7 {[%clk 0:00:43]} 24. Bd3 {[%clk 0:00:49]}  Bxd3 {[%clk 0:00:39]} 25. Qxd3 {[%clk 0:00:50]}  Rfe8 {[%clk 0:00:38]} 26. g3 {[%clk 0:00:45]}  Rad8 {[%clk 0:00:29]} 27. Qf5 {[%clk 0:00:42]}  b6 {[%clk 0:00:24]} 28. Nd3 {[%clk 0:00:27]}  Ne7 {[%clk 0:00:19]} 29. Qg4 {[%clk 0:00:23]}  Qd5 {[%clk 0:00:14]} 30. Nb4 {[%clk 0:00:17]}  Qd6 {[%clk 0:00:11]} 31. Rad1 {[%clk 0:00:15]}  Nd5 {[%clk 0:00:07]} 32. Qh5 {[%clk 0:00:10]}  Rxe1+ {[%clk 0:00:06]} 33. Rxe1 {[%clk 0:00:11]}  Nxb4 {[%clk 0:00:06]} 34. axb4 {[%clk 0:00:06]}  Qxd4 {[%clk 0:00:05]} 35. Re8+ {[%clk 0:00:06]}  Rxe8 {[%clk 0:00:05]} 36. Qxe8+ {[%clk 0:00:07]}  Kh7 {[%clk 0:00:06]} 37. Qh5+ {[%clk 0:00:07]}  Kg8 {[%clk 0:00:06]} 38. Qe8+ {[%clk 0:00:08]}  Kh7 {[%clk 0:00:06]} 39. Qh5+ {[%clk 0:00:07]}  Kg8 {[%clk 0:00:06]} 40. Qe8+ {[%clk 0:00:05]} 1/2-1/2


[Site "https://www.chess.com"]

[Event "Titled Tuesday Blitz February 21 Late 2023"]
[White "Curtis, John"]
[Black "Fajdetic, Hrvoje"]
[WhiteFideId "3200256"]
[BlackFideId "14501945"]
[WhiteElo "2292"]
[BlackElo "2151"]
[Result "1-0"]
[Round "07"]
[TimeControl "180+2"]
[Date "2023.02.21"]
[WhiteClock "0:01:13"]
[BlackClock "0:00:02"]

1. e4 {[%clk 0:03:00]}  c5 {[%clk 0:02:58]} 2. Nf3 {[%clk 0:03:00]}  a6 {[%clk 0:02:57]} 3. g3 {[%clk 0:02:58]}  b6 {[%clk 0:02:47]} 4. Bg2 {[%clk 0:02:58]}  Bb7 {[%clk 0:02:48]} 5. Qe2 {[%clk 0:02:58]}  d6 {[%clk 0:02:44]} 6. O-O {[%clk 0:02:57]}  e5 {[%clk 0:02:44]} 7. c4 {[%clk 0:02:52]}  Ne7 {[%clk 0:02:23]} 8. Nc3 {[%clk 0:02:49]}  Nbc6 {[%clk 0:02:16]} 9. d3 {[%clk 0:02:47]}  Nd4 {[%clk 0:02:14]} 10. Nxd4 {[%clk 0:02:47]}  cxd4 {[%clk 0:02:13]} 11. Nb1 {[%clk 0:02:40]}  f5 {[%clk 0:01:57]} 12. f4 {[%clk 0:02:30]}  fxe4 {[%clk 0:01:50]} 13. Bxe4 {[%clk 0:02:29]}  Bxe4 {[%clk 0:01:43]} 14. Qxe4 {[%clk 0:02:28]}  Ra7 {[%clk 0:00:51]} 15. fxe5 {[%clk 0:02:25]}  d5 {[%clk 0:00:50]} 16. Qf3 {[%clk 0:02:15]}  Ng6 {[%clk 0:00:42]} 17. e6 {[%clk 0:01:54]}  Rc7 {[%clk 0:00:10]} 18. Nd2 {[%clk 0:01:30]}  dxc4 {[%clk 0:00:08]} 19. dxc4 {[%clk 0:01:20]}  Bc5 {[%clk 0:00:07]} 20. Ne4 {[%clk 0:01:19]}  Rf8 {[%clk 0:00:07]} 21. Bf4 {[%clk 0:01:15]}  Nxf4 {[%clk 0:00:06]} 22. gxf4 {[%clk 0:01:15]}  Qc8 {[%clk 0:00:02]} 23. f5 {[%clk 0:01:13]} 1-0


[Site "https://www.chess.com"]

[Event "Titled Tuesday Blitz February 21 Late 2023"]
[White "Magallanes, Rey Jomar"]
[Black "rikchessmx"]
[WhiteFideId "5205948"]
[WhiteElo "2052"]
[BlackElo "2290"]
[Result "0-1"]
[Round "07"]
[TimeControl "180+2"]
[Date "2023.02.21"]
[WhiteClock "0:01:26"]
[BlackClock "0:01:51"]

1. e4 {[%clk 0:03:00]}  e5 {[%clk 0:02:58]} 2. Nf3 {[%clk 0:03:00]}  Nc6 {[%clk 0:02:52]} 3. Bc4 {[%clk 0:02:59]}  Bc5 {[%clk 0:02:34]} 4. d3 {[%clk 0:02:59]}  d6 {[%clk 0:02:33]} 5. c3 {[%clk 0:02:58]}  Qf6 {[%clk 0:02:33]} 6. a4 {[%clk 0:02:57]}  a5 {[%clk 0:02:32]} 7. Nbd2 {[%clk 0:02:51]}  Nge7 {[%clk 0:02:30]} 8. O-O {[%clk 0:02:51]}  h6 {[%clk 0:02:29]} 9. Re1 {[%clk 0:02:49]}  Ng6 {[%clk 0:02:30]} 10. Nf1 {[%clk 0:02:48]}  Nf4 {[%clk 0:02:29]} 11. Bxf4 {[%clk 0:02:48]}  Qxf4 {[%clk 0:02:29]} 12. Ne3 {[%clk 0:02:46]}  Ne7 {[%clk 0:02:27]} 13. d4 {[%clk 0:02:45]}  Bb6 {[%clk 0:02:25]} 14. dxe5 {[%clk 0:02:44]}  dxe5 {[%clk 0:02:26]} 15. g3 {[%clk 0:02:38]}  Qf6 {[%clk 0:02:26]} 16. Nd5 {[%clk 0:02:31]}  Nxd5 {[%clk 0:02:25]} 17. exd5 {[%clk 0:02:31]}  Bg4 {[%clk 0:02:15]} 18. Kg2 {[%clk 0:01:58]}  O-O {[%clk 0:02:13]} 19. h3 {[%clk 0:01:58]}  Bxf3+ {[%clk 0:02:10]} 20. Qxf3 {[%clk 0:01:59]}  Qxf3+ {[%clk 0:02:08]} 21. Kxf3 {[%clk 0:02:00]}  Rfe8 {[%clk 0:02:08]} 22. g4 {[%clk 0:01:58]}  Kf8 {[%clk 0:02:07]} 23. Re4 {[%clk 0:01:57]}  f6 {[%clk 0:02:07]} 24. Rd1 {[%clk 0:01:56]}  Ke7 {[%clk 0:02:07]} 25. Bb3 {[%clk 0:01:53]}  Kd6 {[%clk 0:02:06]} 26. c4 {[%clk 0:01:53]}  Bc5 {[%clk 0:02:05]} 27. Ba2 {[%clk 0:01:51]}  g6 {[%clk 0:02:04]} 28. Bb1 {[%clk 0:01:40]}  Rf8 {[%clk 0:02:01]} 29. Ree1 {[%clk 0:01:36]}  f5 {[%clk 0:02:01]} 30. Kg3 {[%clk 0:01:28]}  fxg4 {[%clk 0:01:57]} 31. Kxg4 {[%clk 0:01:27]}  Rf4+ {[%clk 0:01:54]} 32. Kg3 {[%clk 0:01:24]}  Bxf2+ {[%clk 0:01:54]} 33. Kg2 {[%clk 0:01:24]}  Bxe1 {[%clk 0:01:54]} 34. Rxe1 {[%clk 0:01:25]}  Rxc4 {[%clk 0:01:52]} 35. Bxg6 {[%clk 0:01:26]}  Rg8 {[%clk 0:01:51]} 0-1


[Site "https://www.chess.com"]

[Event "Titled Tuesday Blitz February 21 Late 2023"]
[White "Hartikainen, Jarmo"]
[Black "Kostiukov, Alexandr"]
[WhiteFideId "503134"]
[BlackFideId "14108100"]
[WhiteElo "2108"]
[BlackElo "2271"]
[Result "0-1"]
[Round "07"]
[TimeControl "180+2"]
[Date "2023.02.21"]
[WhiteClock "0:00:01"]
[BlackClock "0:00:04"]

1. e4 {[%clk 0:03:00]}  c5 {[%clk 0:03:00]} 2. c3 {[%clk 0:03:00]}  g6 {[%clk 0:02:59]} 3. d4 {[%clk 0:03:00]}  cxd4 {[%clk 0:03:00]} 4. cxd4 {[%clk 0:03:00]}  d5 {[%clk 0:03:01]} 5. e5 {[%clk 0:02:59]}  Nc6 {[%clk 0:03:00]} 6. Be3 {[%clk 0:02:58]}  Bg7 {[%clk 0:03:00]} 7. Nc3 {[%clk 0:02:57]}  Nh6 {[%clk 0:03:00]} 8. Qb3 {[%clk 0:02:45]}  Nf5 {[%clk 0:02:58]} 9. Qxd5 {[%clk 0:02:32]}  Nfxd4 {[%clk 0:02:56]} 10. Qxd8+ {[%clk 0:02:28]}  Kxd8 {[%clk 0:02:49]} 11. Bxd4 {[%clk 0:02:22]}  Nxd4 {[%clk 0:02:49]} 12. O-O-O {[%clk 0:02:22]}  Bxe5 {[%clk 0:02:28]} 13. Nf3 {[%clk 0:02:22]}  Bf4+ {[%clk 0:02:12]} 14. Kb1 {[%clk 0:02:09]}  Bf5+ {[%clk 0:02:12]} 15. Bd3 {[%clk 0:02:09]}  Nxf3 {[%clk 0:01:27]} 16. Bxf5+ {[%clk 0:02:04]}  Bd6 {[%clk 0:01:27]} 17. Be4 {[%clk 0:01:34]}  Ne5 {[%clk 0:01:05]} 18. Bxb7 {[%clk 0:01:33]}  Rb8 {[%clk 0:01:05]} 19. Bd5 {[%clk 0:01:31]}  g5 {[%clk 0:00:57]} 20. Rhe1 {[%clk 0:01:29]}  f6 {[%clk 0:00:56]} 21. g3 {[%clk 0:01:24]}  g4 {[%clk 0:00:51]} 22. Ne4 {[%clk 0:01:14]}  f5 {[%clk 0:00:25]} 23. Nxd6 {[%clk 0:01:12]}  exd6 {[%clk 0:00:26]} 24. Be6 {[%clk 0:01:11]}  Ke7 {[%clk 0:00:23]} 25. Bxf5 {[%clk 0:01:11]}  Rhf8 {[%clk 0:00:23]} 26. Bxg4 {[%clk 0:00:58]}  Rxf2 {[%clk 0:00:24]} 27. Re2 {[%clk 0:00:59]}  Rf6 {[%clk 0:00:15]} 28. Bh3 {[%clk 0:00:33]}  a5 {[%clk 0:00:13]} 29. Bg2 {[%clk 0:00:30]}  a4 {[%clk 0:00:14]} 30. a3 {[%clk 0:00:30]}  h5 {[%clk 0:00:12]} 31. Bd5 {[%clk 0:00:27]}  h4 {[%clk 0:00:11]} 32. Rc1 {[%clk 0:00:21]}  Rh6 {[%clk 0:00:01]} 33. Rc7+ {[%clk 0:00:18]}  Kf6 {[%clk 0:00:01]} 34. Rf2+ {[%clk 0:00:15]}  Kg5 {[%clk 0:00:02]} 35. Rg7+ {[%clk 0:00:13]}  Rg6 {[%clk 0:00:03]} 36. Rxg6+ {[%clk 0:00:12]}  Nxg6 {[%clk 0:00:03]} 37. gxh4+ {[%clk 0:00:09]}  Nxh4 {[%clk 0:00:04]} 38. Bc6 {[%clk 0:00:07]}  Rc8 {[%clk 0:00:04]} 39. Bxa4 {[%clk 0:00:04]}  Rb8 {[%clk 0:00:04]} 40. Bc2 {[%clk 0:00:04]}  Kg4 {[%clk 0:00:03]} 41. b4 {[%clk 0:00:03]}  Nf3 {[%clk 0:00:03]} 42. Kb2 {[%clk 0:00:02]}  d5 {[%clk 0:00:04]} 43. Bd1 {[%clk 0:00:01]}  Re8 {[%clk 0:00:03]} 44. Bxf3+ {[%clk 0:00:01]}  Kg5 {[%clk 0:00:04]} 0-1


[Site "https://www.chess.com"]

[Event "Titled Tuesday Blitz February 21 Late 2023"]
[White "Sabar, Ethmane Daouda"]
[Black "Roman, Rodrigo"]
[WhiteFideId "19600097"]
[BlackFideId "3701220"]
[WhiteElo "2040"]
[BlackElo "2058"]
[Result "1-0"]
[Round "07"]
[TimeControl "180+2"]
[Date "2023.02.21"]
[WhiteClock "0:01:39"]
[BlackClock "0:02:16"]

1. b3 {[%clk 0:03:00]}  e5 {[%clk 0:02:57]} 2. Bb2 {[%clk 0:03:01]}  Nc6 {[%clk 0:02:57]} 3. e3 {[%clk 0:03:02]}  Nf6 {[%clk 0:02:56]} 4. Bb5 {[%clk 0:03:01]}  d6 {[%clk 0:02:56]} 5. d4 {[%clk 0:03:02]}  exd4 {[%clk 0:02:56]} 6. Qxd4 {[%clk 0:03:03]}  Bd7 {[%clk 0:02:55]} 7. Bxc6 {[%clk 0:03:03]}  Bxc6 {[%clk 0:02:56]} 8. Nf3 {[%clk 0:03:03]}  Be7 {[%clk 0:02:47]} 9. Nc3 {[%clk 0:03:03]}  Qd7 {[%clk 0:02:47]} 10. O-O-O {[%clk 0:03:02]}  O-O-O {[%clk 0:02:46]} 11. Kb1 {[%clk 0:03:02]}  Qg4 {[%clk 0:02:42]} 12. Qxa7 {[%clk 0:03:01]}  Qxg2 {[%clk 0:02:39]} 13. Nd4 {[%clk 0:02:53]}  Nd5 {[%clk 0:02:29]} 14. Ncb5 {[%clk 0:02:36]}  Nb6 {[%clk 0:02:18]} 15. Rhg1 {[%clk 0:02:15]}  Qe4 {[%clk 0:02:17]} 16. f3 {[%clk 0:02:07]}  Qd5 {[%clk 0:02:16]} 17. e4 {[%clk 0:02:00]}  Qc5 {[%clk 0:02:16]} 18. Ba3 {[%clk 0:01:39]} 1-0


[Site "https://www.chess.com"]